[Event "Polish Youth 1st League 2022"]
[Site "Lublin"]
[Date "2022.06.29"]
[Round "5.19"]
[White "Wieczorek, Mikolaj"]
[Black "Luczak, Filip"]
[Result "0-1"]
[ECO "B12"]
[WhiteElo "1942"]
[BlackElo "2311"]
[Annotator "TA"]
[PlyCount "120"]
[EventDate "2022.06.24"]
[EventType "team-tourn"]
[EventCountry "POL"]
[SourceTitle "playchess.com"]
[Source "ChessBase"]
[SourceQuality "1"]
[TimeControl "40/5400+30:1800+30"]

{[%evp 9,120,27,41,27,38,25,45,16,72,72,77,70,172,147,256,23,28,0,14,-19,-14,-20,-3,-18,0,0,1,6,2,0,14,14,15,9,16,14,33,7,23,9,40,40,42,-29,-15,-96,-27,-42,-30,-62,-4,-74,-70,-69,-78,-79,-91,-71,-41,-41,-41,-41,-41,-70,-41,-42,-41,-46,-46,-42,0,-42,-17,-14,-20,-61,-61,-58,-52,-53,-73,-68,-66,-56,-39,-39,-38,-35,0,0,0,0,0,-28,-28,-28,-36,-43,-45,-799,-680,-629,-615,-1813,-1704,-29966,-29961,-29975,-29976,-29977,-29978,-29946,-29938]} 1. e4 {[%emt 0:00:16]} c6 {[%emt 0:00:06]} 2. d4 {[%emt 0:00:05]} Qa5+ {[%emt 0:00:04]} 3. Bd2 {[%emt 0:04:31]} Qb6 {[%emt 0:00:02]} 4. Nf3 {[%emt 0:00:22]} Qxb2 {[%emt 0:00:11]} 5. Bc4 {[%emt 0:01:34]} Qb6 $1 {[%emt 0:00:53]} (5... Qxa1 $2 6. Bc3 Qxc3+ 7. Nxc3 $18) 6. O-O {[%emt 0:03:39][%mdl 1024] White wants to play Ne5. White has compensation. B12: Caro-Kann: Advance Variation.} e6 {[%emt 0:01:05]} 7. Re1 {[%emt 0:02:33] [#]} Be7 $146 {[%emt 0:04:58]} ({Predecessor:} 7... Nf6 8. Nc3 Be7 9. Qe2 d6 10. e5 dxe5 11. Rab1 Qd8 12. Nxe5 O-O 13. Ne4 Qxd4 {1-0 (40) Karimi,F (2122)-Lukovski,L (2007) Cologne 2004}) 8. e5 {[%emt 0:19:38] White is slightly better.} Qc7 {[%emt 0:21:41]} (8... d5 $11 {keeps the balance.} 9. exd6 Bxd6) 9. Nc3 $16 d5 {[%emt 0:09:38]} 10. exd6 $1 {[%emt 0:04:34]} Qxd6 {[%emt 0:00:56]} (10... Bxd6 $14 11. Ne4 Nf6) 11. Ne4 $18 {[%emt 0:01:24]} Qd8 {[%emt 0:02:43]} 12. Bf4 $2 {[%emt 0:02:49]} ({White must play} 12. Ne5 $1 $18) 12... Nf6 {[%emt 0:02:05]} 13. Ne5 {[%emt 0:07:49][%cal Oe5f7]} O-O {[%emt 0:08:16]} 14. Bd3 {[%emt 0:02:49]} Nxe4 {[%emt 0:04:12]} 15. Bxe4 {[%emt 0:00:05]} Nd7 {[%emt 0:04:07]} 16. Nxd7 {[%emt 0:04:01]} (16. Qh5 f5 17. Nxd7 Qxd7 $17) (16. c3 {looks sharper.} Nxe5 17. Bxe5 Bd6 18. Qh5) 16... Bxd7 {[%emt 0:01:47]} 17. Qf3 {[%emt 0:04:41]} f5 {[%emt 0:02:37]} 18. Bd3 {[%emt 0:00:22]} Bf6 {[%emt 0:00:28]} 19. Bc4 {[%emt 0:00:31]} Kh8 {[%emt 0:05:25]} 20. Rad1 {[%emt 0:00:20]} Re8 {[%emt 0:02:30]} 21. Bb3 {[%emt 0:01:50]} Rc8 {[%emt 0:02:31]} 22. Bd6 {[%emt 0:02:54]} Qa5 {[%emt 0:01:30][%cal Of6d4]} 23. Qe3 {[%emt 0:07:05]} Rg8 {[%emt 0:01:51]} 24. c4 {[%emt 0:01:58][%cal Bc2c4,Bc4c5][%mdl 32]} (24. Bxe6 Rge8 25. Qb3 (25. Bxd7 $2 Rxe3 26. Rxe3 Rd8 $19) 25... Bxd4 $1 $17) 24... Rce8 {[%emt 0:00:49]} 25. c5 {[%emt 0:00:31]} Bc8 {[%emt 0:02:01]} 26. Qf3 {[%emt 0:03:09]} (26. Re2 $14) 26... Bxd4 $1 $11 {[%emt 0:02:19][%cal Oe8d8]} 27. h4 {[%emt 0:05:32]} (27. g4 $11 {remains equal.}) 27... Bf6 {[%emt 0:02:25]} ({Of course not} 27... Bxc5 $6 28. Re5 b6 29. Bxc5 bxc5 30. Qxc6 $11) (27... Qc3 $1 $17 {Strongly threatening ...Qxf3.} 28. Qxc3 Bxc3) 28. h5 {[%emt 0:00:29]} Qb4 {[%emt 0:04:28]} 29. Re2 {[%emt 0:00:27]} a5 {[%emt 0:00:39]} (29... g6 $15) 30. Rc1 {[%emt 0:01:08]} (30. Rc2 $1 $11) 30... Qa3 $17 {[%emt 0:02:33]} 31. Rce1 {[%emt 0:01:45]} a4 {[%emt 0:01:38]} 32. Bc2 {[%emt 0:01:30]} Qxf3 {[%emt 0:05:13]} ({But not} 32... Qxa2 $6 33. Bxf5 Qd5 34. Be4 $11) 33. gxf3 {[%emt 0:00:04]} g6 {[%emt 0:01:14]} 34. h6 {[%emt 0:00:04]} Rd8 {[%emt 0:00:59] ...b5 is the strong threat.} 35. Bxa4 {[%emt 0:02:04]} Rge8 {[%emt 0:00:06]} 36. Bb3 {[%emt 0:00:10]} Kg8 {[%emt 0:00:30]} (36... Bg5 $5 {[%cal Rg5h6]}) 37. f4 {[%emt 0:01:12]} Kf7 {[%emt 0:00:44]} 38. Kg2 {[%emt 0:00:28]} Bc3 {[%emt 0:02:31]} 39. Rc1 {[%emt 0:00:20]} Bf6 {[%emt 0:00:03]} 40. Rce1 {[%emt 0:00:00]} g5 {[%emt 0:00:00]} 41. fxg5 {[%emt 0:05:56]} Bxg5 {[%emt 0:02:02]} 42. f4 {[%emt 0:00:33]} Bh4 {[%emt 0:04:26]} 43. Rh1 {[%emt 0:03:49]} Rg8+ {[%emt 0:01:16]} 44. Kf1 {[%emt 0:00:28]} Rg4 {[%emt 0:02:31][%cal Ob7b6] White must now prevent ...b6!} 45. Rg2 {[%emt 0:01:42]} Rxg2 {[%emt 0:01:47]} 46. Kxg2 {[%emt 0:01:57]} Be7 {[%emt 0:01:11]} 47. Bxe7 {[%emt 0:01:26]} Kxe7 $15 {[%emt 0:00:14][%mdl 4096] Endgame KRB-KRB} 48. Rh5 {[%emt 0:01:45]} Rg8+ {[%emt 0:05:22]} 49. Rg5 {[%emt 0:00:34]} Rxg5+ {[%emt 0:02:34]} 50. fxg5 $11 {[%emt 0:00:04][%cal Og5g6] And now g6! would win. KB-KB} Kf7 {[%emt 0:00:04]} 51. Kf3 {[%emt 0:00:06]} Kg6 $1 {[%emt 0:00:06]} 52. Kf4 {[%emt 0:00:01]} e5+ {[%emt 0:00:11]} 53. Kxe5 {[%emt 0:00:04]} Kxg5 {[%emt 0:00:06] aiming for ...f4.} 54. Kd6 $2 {[%emt 0:00:23][%mdl 8192]} (54. a4 $15) 54... f4 $19 {[%emt 0:01:19][%cal Bf5f4,Bf4f3,Bf3f2][%mdl 32]} 55. Kc7 {[%emt 0:00:34] [#]} Bg4 {[%emt 0:01:02]} 56. Bc4 {[%emt 0:00:06] Against Be2} Bd1 {[%emt 0:00:45] Threatens to win with ...f3.} 57. Kxb7 {[%emt 0:01:38] [#]} f3 $1 {[%emt 0:00:11] Black mates.} 58. Kxc6 {[%emt 0:00:21]} Be2 {[%emt 0:00:17]} 59. Be6 {[%emt 0:00:03]} f2 {[%emt 0:00:09]} 60. Bh3 {[%emt 0:00:02]} Kh4 {[%emt 0:00:11] What a bad dream for White.  Weighted Error Value: White=0.56/Black=0.12 (very precise)} 0-1

[Event "Polish Youth 1st League 2022"]
[Site "Lublin"]
[Date "2022.06.29"]
[Round "5.20"]
[White "Bachor, Tomasz"]
[Black "Bednarczyk, Mateusz"]
[Result "1-0"]
[ECO "D00"]
[WhiteElo "1971"]
[BlackElo "1701"]
[Annotator "TA"]
[PlyCount "120"]
[EventDate "2022.06.24"]
[EventType "team-tourn"]
[EventCountry "POL"]
[SourceTitle "playchess.com"]
[Source "ChessBase"]
[SourceQuality "1"]
[TimeControl "40/5400+30:1800+30"]

{[%evp 13,120,8,7,0,17,20,58,35,58,56,123,125,131,120,150,103,94,97,102,38,108,122,125,118,129,116,116,84,119,106,140,140,136,147,164,166,160,167,163,156,143,124,137,115,120,120,111,112,168,171,183,182,175,166,189,183,194,185,172,149,143,142,209,208,214,217,221,207,232,232,225,221,246,234,305,285,306,304,285,275,587,587,670,460,576,559,4940,4868,4448,4134,29972,29973,29975,29975,29972,29973,29967,11964,29982,29983,29984,29982,29986,29987,29987,29988,29988,29988,29988]} 1. d4 {[%emt 0:00:07]} d5 {[%emt 0:00:09]} 2. Bf4 {[%emt 0:07:48]} Nf6 {[%emt 0:00:59]} 3. e3 {[%emt 0:00:04]} e6 {[%emt 0:02:03]} 4. Nd2 {[%emt 0:03:00]} Be7 {[%emt 0:00:09]} 5. h3 {[%emt 0:01:29]} O-O {[%emt 0:00:08]} 6. Ngf3 {[%emt 0:00:10]} c5 {[%emt 0:00:10]} 7. c3 {[%emt 0:00:26]} Nc6 {[%emt 0:00:05] The main line 7...Nc6 scores better than 7...b6.} 8. Be2 {[%emt 0:02:18] D02: 1 d4 d5 2 Nf3 sidelines, including 2...Nf6 3 g3 and 2...Nf6 3 Bf4.} Nd7 {[%emt 0:04:59]} 9. O-O {[%emt 0:05:46]} f6 {[%emt 0:01:33] [#]} 10. e4 $146 {[%emt 0:11:15] White is slightly better.} ({Predecessor:} 10. Bh2 e5 11. c4 dxc4 12. Nxc4 e4 13. Nfd2 cxd4 14. Nxe4 dxe3 15. Qd5+ Kh8 16. Ned6 Bxd6 17. Nxd6 exf2+ 18. Rxf2 {0-1 (51) Dos Santos,H (2253)-Ferreira,E (2040) Sao Jose dos Pinhais 2010}) 10... dxe4 {[%emt 0:17:59]} 11. Nxe4 {[%emt 0:01:35]} f5 {[%emt 0:05:37]} (11... Kh8 $14) 12. Nxc5 $16 {[%emt 0:11:18]} Nxc5 {[%emt 0:03:29]} 13. dxc5 {[%emt 0:00:05]} Bxc5 {[%emt 0:03:12]} 14. Qxd8 (14. Qc2 $142) 14... Rxd8 {[%emt 0:03:04]} 15. Bc4 {[%emt 0:07:37]} h6 {[%emt 0:10:07] Prevents Ng5.} 16. Rfe1 {[%emt 0:05:09]} ({Better is} 16. Bc7 $16) 16... Re8 {[%emt 0:11:01]} (16... Bd6 $14 17. Be5 Kf7) 17. Rad1 {[%emt 0:03:41]} Kh7 {[%emt 0:06:48]} 18. Bd6 $36 {[%emt 0:03:58][%mdl 2048] White is on the roll.} Bb6 {[%emt 0:06:43]} 19. Ne5 {[%emt 0:07:06]} Nxe5 {[%emt 0:03:56]} 20. Rxe5 {[%emt 0:01:56]} Rd8 {[%emt 0:12:13] ...Bc7 is the strong threat.} 21. Bxe6 {[%emt 0:07:08]} Bc7 {[%emt 0:01:21]} 22. Bxc8 {[%emt 0:00:40] White is much more active.} Raxc8 {[%emt 0:00:04]} 23. Red5 {[%emt 0:00:19]} Bxd6 {[%emt 0:00:27]} 24. Rxd6 {[%emt 0:00:04]} Rxd6 {[%emt 0:00:05]} 25. Rxd6 {[%emt 0:00:04][%mdl 4096] Endgame KR-KR} Rc7 {[%emt 0:00:07]} 26. Kf1 {[%emt 0:01:33]} Re7 {[%emt 0:01:11]} 27. Rd3 {[%emt 0:00:27]} f4 {[%emt 0:03:08]} 28. Rd1 {[%emt 0:02:44]} Kg6 {[%emt 0:00:55]} 29. Re1 {[%emt 0:00:12]} Rd7 {[%emt 0:00:10]} 30. Ke2 {[%emt 0:00:30] Prevents Rd2+.} Kf5 {[%emt 0:00:25] [#]} (30... h5 $16 {was called for.}) 31. Rd1 $1 $18 {[%emt 0:05:01]} f3+ {[%emt 0:00:58]} 32. gxf3 {[%emt 0:00:05]} Re7+ {[%emt 0:00:03]} 33. Kf1 {[%emt 0:00:09]} Kf4 {[%emt 0:00:03]} 34. Kg2 {[%emt 0:00:48]} Re2 {[%emt 0:00:15]} 35. Rd4+ {[%emt 0:00:09]} Kf5 {[%emt 0:00:05]} 36. Rb4 {[%emt 0:00:42]} b6 {[%emt 0:00:15]} 37. Kg3 {[%emt 0:00:31]} g5 {[%emt 0:02:35] [#]} (37... Rc2 $16 {was worth a try.} 38. h4 Rc1 39. Rf4+ Ke6 40. Re4+ Kf7) 38. f4 $1 {[%emt 0:00:24]} Kg6 {[%emt 0:02:12]} 39. fxg5 {[%emt 0:00:29]} hxg5 {[%emt 0:00:05]} 40. Kf3 {[%emt 0:00:00]} Re1 {[%emt 0:00:00]} 41. h4 {[%emt 0:03:40]} gxh4 {[%emt 0:02:03]} 42. Rxh4 {[%emt 0:00:07]} Re5 {[%emt 0:00:30]} 43. Ra4 {[%emt 0:01:05]} Rf5+ {[%emt 0:02:25]} 44. Ke3 {[%emt 0:00:20]} Re5+ {[%emt 0:00:39]} 45. Kd3 {[%emt 0:00:24]} Rd5+ {[%emt 0:02:05]} 46. Kc2 {[%emt 0:00:10]} a5 {[%emt 0:00:19]} (46... Rd7 {is a better chance.} 47. Rf4 Kg5) 47. Rd4 {[%emt 0:00:18]} Rf5 {[%emt 0:00:18]} 48. Rd6+ {[%emt 0:00:16]} Kf7 {[%emt 0:00:38]} 49. Rxb6 {[%emt 0:00:24]} Rxf2+ {[%emt 0:00:05]} 50. Kb3 {[%emt 0:00:09]} Ke7 {[%emt 0:00:48]} 51. Ka4 {[%emt 0:00:12]} Kd7 {[%emt 0:00:13]} 52. Kxa5 {[%emt 0:00:07]} Kc7 {[%emt 0:00:03]} 53. a4 {[%emt 0:00:21]} Rf4 {[%emt 0:00:22]} 54. Rh6 {[%emt 0:00:46]} Kb7 {[%emt 0:00:18]} 55. Rh7+ {[%emt 0:00:20]} (55. b4 $142 Rf8 56. b5 Ra8+ 57. Kb4 Kc7 58. Rh7+ Kd6 59. b6 Rf8 60. b7) 55... Kb8 {[%emt 0:00:31]} 56. b4 {[%emt 0:00:09] White mates.} Rc4 {[%emt 0:00:06]} 57. Kb6 {[%emt 0:00:20]} Rxc3 {[%emt 0:00:29]} 58. Rh8+ {[%emt 0:00:07]} Rc8 {[%emt 0:00:02]} 59. Rxc8+ {[%emt 0:00:09]} Kxc8 {[%emt 0:00:02]} 60. Ka7 {[%emt 0:00:11]} Kc7 {[%emt 0:00:03] Weighted Error Value: White=0.07 (flawless) /Black=0.47} 1-0

[Event "Polish Youth 1st League 2022"]
[Site "Lublin"]
[Date "2022.06.29"]
[Round "5.21"]
[White "Nagly, Wojciech"]
[Black "Cieslak, Patryk"]
[Result "0-1"]
[ECO "A40"]
[WhiteElo "1464"]
[BlackElo "2019"]
[Annotator "NA RC"]
[PlyCount "176"]
[EventDate "2022.06.24"]
[EventType "team-tourn"]
[EventCountry "POL"]
[SourceTitle "playchess.com"]
[Source "ChessBase"]
[SourceQuality "1"]
[TimeControl "40/5400+30:1800+30"]

1. d4 {[%emt 0:00:01]} g6 {[%emt 0:00:04]} 2. Nf3 {[%emt 0:00:08]} Bg7 {[%emt 0:00:09]} 3. e3 {[%emt 0:00:10]} d6 {[%emt 0:00:21]} 4. Be2 {[%emt 0:00:14]} Nd7 {[%emt 0:00:42]} 5. O-O {[%emt 0:00:20]} e5 {[%emt 0:00:34]} 6. c4 {[%emt 0:00:45]} Ne7 {[%emt 0:00:10]} 7. Nc3 {[%emt 0:00:26]} O-O {[%emt 0:00:21]} 8. Qc2 {[%emt 0:01:18]} c6 {[%emt 0:01:48]} 9. b3 {[%emt 0:01:38]} exd4 {[%emt 0:05:17]} 10. exd4 {[%emt 0:00:31]} Nf6 {[%emt 0:00:17]} 11. Bb2 {[%emt 0:07:47]} Bf5 {[%emt 0:00:18]} 12. Bd3 {[%emt 0:00:37]} Bg4 {[%emt 0:00:51]} 13. Nd2 {[%emt 0:00:52]} Qd7 {[%emt 0:02:05]} 14. Rfe1 {[%emt 0:05:53]} Rfe8 {[%emt 0:01:25]} 15. Nde4 {[%emt 0:01:47]} Nxe4 {[%emt 0:07:03]} 16. Nxe4 {[%emt 0:00:25]} Bf5 {[%emt 0:01:55]} 17. Ng3 {[%emt 0:05:19]} Bxd3 {[%emt 0:01:06]} 18. Qxd3 {[%emt 0:00:01]} d5 {[%emt 0:01:40]} 19. Rad1 {[%emt 0:03:43]} h5 {[%emt 0:00:59]} 20. Ba3 {[%emt 0:05:27]} h4 {[%emt 0:04:13]} 21. Rxe7 {[%emt 0:00:52]} Rxe7 {[%emt 0:00:09]} 22. Bxe7 {[%emt 0:00:01]} hxg3 {[%emt 0:00:49]} 23. Bh4 {[%emt 0:01:18]} gxh2+ {[%emt 0:00:29]} 24. Kxh2 {[%emt 0:00:28]} Re8 {[%emt 0:05:37]} 25. Bg5 {[%emt 0:10:47]} Qg4 {[%emt 0:06:05]} 26. Be3 {[%emt 0:01:18]} Re4 {[%emt 0:01:39]} 27. cxd5 {[%emt 0:07:35]} Qh5+ {[%emt 0:00:22]} 28. Kg1 {[%emt 0:00:42]} Rh4 {[%emt 0:03:05]} 29. f3 {[%emt 0:01:45]} Qxd5 {[%emt 0:00:18]} 30. Bf2 {[%emt 0:03:02]} Rf4 {[%emt 0:00:31]} 31. Be3 {[%emt 0:00:46]} Rh4 {[%emt 0:00:37]} 32. Bf2 {[%emt 0:00:07]} Rf4 {[%emt 0:00:48]} 33. Be3 {[%emt 0:00:05]} Rf6 {[%emt 0:00:30]} 34. Qc4 {[%emt 0:04:25]} Rd6 {[%emt 0:01:02]} 35. Qxd5 {[%emt 0:11:51]} Rxd5 {[%emt 0:00:01]} 36. Rd2 {[%emt 0:06:06]} Kf8 {[%emt 0:00:27]} 37. Kf2 {[%emt 0:00:15]} Ke7 {[%emt 0:00:26]} 38. Ke2 {[%emt 0:00:35]} Ke6 {[%emt 0:00:30]} 39. a4 {[%emt 0:01:25]} b6 {[%emt 0:06:31]} 40. Kd3 {[%emt 0:00:00]} Rh5 {[%emt 0:00:00]} 41. Rc2 {[%emt 0:07:52]} Kd5 {[%emt 0:08:41]} 42. a5 {[%emt 0:02:52]} Rh1 {[%emt 0:00:53]} 43. axb6 {[%emt 0:00:23]} axb6 {[%emt 0:00:10]} 44. Rd2 {[%emt 0:03:32]} Rh4 {[%emt 0:02:00]} 45. Bf2 {[%emt 0:02:48]} Rh1 {[%emt 0:00:23]} 46. Be3 {[%emt 0:00:31]} Ra1 {[%emt 0:00:14]} 47. Ke2 {[%emt 0:08:26]} Rb1 {[%emt 0:00:57]} 48. Rd3 {[%emt 0:00:25]} Rb2+ {[%emt 0:00:09]} 49. Kf1 {[%emt 0:00:17]} Rc2 {[%emt 0:01:32]} 50. g3 {[%emt 0:03:01]} Bf8 {[%emt 0:02:24]} 51. Ke1 {[%emt 0:00:48]} Bb4+ {[%emt 0:02:24]} 52. Kd1 {[%emt 0:00:26]} Rc3 {[%emt 0:00:43]} 53. Ke2 {[%emt 0:00:26]} Rc2+ {[%emt 0:00:04]} 54. Kd1 {[%emt 0:00:03]} Rg2 {[%emt 0:00:06]} 55. g4 {[%emt 0:00:18]} Ra2 {[%emt 0:01:08]} 56. Kc1 {[%emt 0:00:59]} Be7 {[%emt 0:02:38]} 57. Rd2 {[%emt 0:02:58]} Ra1+ {[%emt 0:03:17]} 58. Kc2 {[%emt 0:00:25]} Bb4 {[%emt 0:00:50]} 59. Rf2 {[%emt 0:00:56]} Re1 {[%emt 0:02:40]} (59... b5 $142 60. Re2 Rf1) 60. Kd3 {[%emt 0:01:42]} (60. Bd2 $17 Bxd2 61. Rxd2) 60... c5 {[%emt 0:06:15]} 61. Re2 {[%emt 0:04:41]} (61. Rc2 $142 cxd4 62. Bd2 Bxd2 63. Kxd2) 61... Rxe2 {[%emt 0:01:20]} 62. Kxe2 {[%emt 0:00:01] [#]} cxd4 $2 {[%emt 0:00:02]} ({Black should try} 62... c4 $1 $19 63. bxc4+ Kxc4) 63. Bf4 {[%emt 0:02:09]} Kc5 {[%emt 0:11:17]} (63... Bd6 $15 64. Bd2 Ke5) 64. Kd3 {[%emt 0:00:21]} Bc3 {[%emt 0:01:02]} 65. Bc7 {[%emt 0:01:15]} b5 {[%emt 0:01:13]} 66. Bd8 $2 {[%emt 0:00:17]} (66. Kc2 $1 $11) 66... Kb4 {[%emt 0:00:40]} 67. Kc2 {[%emt 0:00:05]} Ka3 {[%emt 0:01:17]} 68. Be7+ {[%emt 0:00:07]} b4 {[%emt 0:00:51]} 69. f4 {[%emt 0:00:44]} f6 $19 {[%emt 0:08:17]} 70. g5 {[%emt 0:04:13]} f5 {[%emt 0:03:43]} 71. Bf6 {[%emt 0:00:12]} d3+ {[%emt 0:05:16]} 72. Kxd3 {[%emt 0:00:17]} Kxb3 {[%emt 0:00:01]} 73. Be5 {[%emt 0:00:17]} Bb2 {[%emt 0:00:30]} 74. Kd2 {[%emt 0:02:09]} Ka2 {[%emt 0:00:42]} 75. Kd3 {[%emt 0:00:36]} Bxe5 {[%emt 0:01:08]} 76. fxe5 {[%emt 0:00:01]} b3 {[%emt 0:00:11]} 77. e6 {[%emt 0:00:08]} b2 {[%emt 0:00:01]} 78. Kd4 {[%emt 0:00:04]} b1=Q {[%emt 0:00:09]} 79. Ke5 {[%emt 0:00:04]} Qb8+ {[%emt 0:00:13]} 80. Kf6 {[%emt 0:00:04]} Qe8 {[%emt 0:00:03]} 81. Ke5 {[%emt 0:00:11]} Kb3 {[%emt 0:00:04]} 82. Kf6 {[%emt 0:00:04]} f4 {[%emt 0:00:07]} 83. e7 {[%emt 0:00:07]} f3 {[%emt 0:00:01]} 84. Kg7 {[%emt 0:00:09]} f2 {[%emt 0:00:05]} 85. Kh6 {[%emt 0:00:05]} f1=Q {[%emt 0:00:11]} 86. Kg7 {[%emt 0:00:04]} Qxe7+ {[%emt 0:00:09]} 87. Kxg6 {[%emt 0:00:06]} Qff7+ {[%emt 0:00:12]} 88. Kh6 {[%emt 0:00:08]} Qef8# {[%emt 0:00:09]} 0-1

[Event "Polish Youth 1st League 2022"]
[Site "Lublin"]
[Date "2022.06.29"]
[Round "5.22"]
[White "Brzezina, Piotr"]
[Black "Gibala, Adam"]
[Result "1-0"]
[ECO "E12"]
[WhiteElo "1633"]
[BlackElo "1516"]
[Annotator "NA RC"]
[PlyCount "123"]
[EventDate "2022.06.24"]
[EventType "team-tourn"]
[EventCountry "POL"]
[SourceTitle "playchess.com"]
[Source "ChessBase"]
[SourceQuality "1"]
[TimeControl "40/5400+30:1800+30"]

1. d4 {[%emt 0:00:08]} Nf6 {[%emt 0:00:05]} 2. c4 {[%emt 0:00:14]} e6 {[%emt 0:00:03]} 3. Nf3 {[%emt 0:00:21]} b6 {[%emt 0:00:17]} 4. a3 {[%emt 0:00:18]} Bb7 {[%emt 0:00:09]} 5. Nc3 {[%emt 0:00:11]} Be7 {[%emt 0:00:12]} 6. Bf4 {[%emt 0:02:38]} O-O {[%emt 0:01:20]} 7. e3 {[%emt 0:00:09]} d5 {[%emt 0:02:08]} 8. cxd5 {[%emt 0:00:43]} exd5 {[%emt 0:00:39]} 9. Be2 {[%emt 0:00:58]} c5 {[%emt 0:00:41]} 10. dxc5 {[%emt 0:00:25]} bxc5 {[%emt 0:01:10]} 11. O-O {[%emt 0:00:40]} Nbd7 12. Rc1 {[%emt 0:01:24]} Nb6 {[%emt 0:02:19]} 13. Qc2 {[%emt 0:06:07]} Qc8 {[%emt 0:07:31]} 14. h3 {[%emt 0:03:40]} Ba6 {[%emt 0:03:22]} 15. Rfd1 {[%emt 0:04:54]} Bxe2 16. Qxe2 {[%emt 0:00:14]} Qb7 {[%emt 0:01:38]} 17. Ne5 {[%emt 0:26:05]} Rac8 {[%emt 0:03:26]} 18. Qf3 {[%emt 0:01:11]} Rfd8 {[%emt 0:01:53]} 19. Bh2 {[%emt 0:09:37]} Bd6 {[%emt 0:04:07]} 20. g4 {[%emt 0:08:33]} Re8 {[%emt 0:12:41]} 21. Nd3 {[%emt 0:01:49]} Bxh2+ {[%emt 0:00:11]} 22. Kxh2 {[%emt 0:00:05]} Ne4 23. Nf4 {[%emt 0:03:30]} Rcd8 {[%emt 0:02:27]} 24. Nfe2 {[%emt 0:10:17]} Qb8+ {[%emt 0:04:58]} 25. Kg1 {[%emt 0:01:41]} Qe5 {[%emt 0:01:28]} 26. Qf4 {[%emt 0:02:10]} Qe7 {[%emt 0:01:15]} 27. Nxe4 {[%emt 0:03:17]} dxe4 {[%emt 0:01:20]} 28. Nc3 {[%emt 0:00:50]} Rxd1+ {[%emt 0:01:31]} 29. Rxd1 {[%emt 0:00:02]} h6 {[%emt 0:00:37]} 30. Nd5 {[%emt 0:03:49]} Nxd5 {[%emt 0:01:35]} 31. Rxd5 {[%emt 0:00:07]} Qb7 {[%emt 0:00:46]} 32. Re5 {[%emt 0:01:35]} Rc8 {[%emt 0:00:38]} 33. Qxe4 {[%emt 0:00:58]} Qxb2 {[%emt 0:02:27]} 34. Re8+ {[%emt 0:00:14]} Rxe8 {[%emt 0:00:06]} 35. Qxe8+ {[%emt 0:00:03]} Kh7 {[%emt 0:00:15]} 36. Qe4+ {[%emt 0:02:25]} g6 {[%emt 0:00:07]} 37. Qe7 {[%emt 0:00:18]} Qc1+ {[%emt 0:00:15]} 38. Kg2 {[%emt 0:00:26]} Qc4 {[%emt 0:00:07]} 39. Qxa7 {[%emt 0:00:23]} Qd5+ {[%emt 0:00:06]} 40. Kf1 {[%emt 0:00:00]} Kg7 {[%emt 0:00:00]} 41. a4 {[%emt 0:06:57]} Qd1+ {[%emt 0:05:47]} 42. Kg2 {[%emt 0:00:12]} c4 {[%emt 0:00:19]} 43. Qa5 {[%emt 0:00:38]} Qd3 {[%emt 0:03:07]} 44. Qe5+ {[%emt 0:00:08]} Kh7 {[%emt 0:00:19]} 45. Qc7 {[%emt 0:02:37]} Qd5+ {[%emt 0:02:17]} 46. Kg3 {[%emt 0:02:55]} Kg7 {[%emt 0:01:38]} 47. a5 {[%emt 0:00:25]} h5 {[%emt 0:05:07]} 48. a6 {[%emt 0:09:44]} h4+ {[%emt 0:00:30]} 49. Kxh4 {[%emt 0:03:16]} Qf3 {[%emt 0:00:40]} 50. Qf4 {[%emt 0:01:06]} Qxf4 {[%emt 0:00:15]} 51. exf4 {[%emt 0:00:06]} c3 {[%emt 0:00:24]} 52. a7 {[%emt 0:00:03]} c2 {[%emt 0:00:07]} 53. a8=Q {[%emt 0:00:05]} c1=Q {[%emt 0:00:06]} 54. Kg3 {[%emt 0:01:11]} Qg1+ 55. Qg2 {[%emt 0:00:07]} Qc1 {[%emt 0:00:23]} 56. Qf3 {[%emt 0:00:50]} Qg1+ {[%emt 0:00:46]} 57. Kh4 {[%emt 0:00:17]} Qe1 {[%emt 0:00:17]} 58. Qe3 Qd1 {[%emt 0:01:42]} 59. Qe5+ {[%emt 0:05:18]} Kg8 {[%emt 0:00:54]} 60. f5 {[%emt 0:04:06]} Qd2 {[%emt 0:00:59]} 61. fxg6 {[%emt 0:02:42]} f6 {[%emt 0:00:22]} 62. Qe8+ {[%emt 0:00:31]} 1-0